[Event "January 2 Late 2024"]
[Site "https://www.chess.com"]
[Date "2024.01.02"]
[Round "6"]
[White "Burke, Paul"]
[Black "Sarkar, Justin"]
[Result "1/2-1/2"]
[Board "191"]
[TimeControl "180+1"]
[WhiteFideId "2605767"]
[BlackFideId "2010011"]
[WhiteElo "1928"]
[BlackElo "2261"]
[WhiteTeam "CAN"]
[BlackTeam "USA"]
[WhiteClock "0:02:43"]
[BlackClock "0:01:35"]

1. e4 {[%clk 0:02:58]}  c5 {[%clk 0:02:49]} 2. d4 {[%clk 0:02:57]}  cxd4 {[%clk 0:02:48]} 3. c3 {[%clk 0:02:58]}  dxc3 {[%clk 0:02:47]} 4. Nxc3 {[%clk 0:02:58]}  Nc6 {[%clk 0:02:47]} 5. Nf3 {[%clk 0:02:58]}  Nf6 {[%clk 0:02:47]} 6. Bd3 {[%clk 0:02:56]}  d6 {[%clk 0:02:39]} 7. h3 {[%clk 0:02:54]}  g6 {[%clk 0:02:35]} 8. Qe2 {[%clk 0:02:54]}  Bg7 {[%clk 0:02:33]} 9. Bf4 {[%clk 0:02:53]}  O-O {[%clk 0:02:32]} 10. Rd1 {[%clk 0:02:53]}  Qa5 {[%clk 0:02:25]} 11. O-O {[%clk 0:02:52]}  Ne5 {[%clk 0:02:14]} 12. Nxe5 {[%clk 0:02:49]}  dxe5 {[%clk 0:02:14]} 13. Bd2 {[%clk 0:02:48]}  Qb6 {[%clk 0:02:06]} 14. Be3 {[%clk 0:02:44]}  Qa5 {[%clk 0:01:51]} 15. Bd2 {[%clk 0:02:44]}  Qb6 {[%clk 0:01:42]} 16. Be3 {[%clk 0:02:43]}  Qa5 {[%clk 0:01:35]} 17. Bd2 {[%clk 0:02:43]} 1/2-1/2

[Event "January 2 Late 2024"]
[Site "https://www.chess.com"]
[Date "2024.01.02"]
[Round "6"]
[White "Thake, Conrad"]
[Black "Harish, Neeraj"]
[Result "0-1"]
[Board "192"]
[TimeControl "180+1"]
[WhiteFideId "5602947"]
[BlackFideId "30958130"]
[WhiteElo "1890"]
[BlackElo "2257"]
[WhiteTeam "MLT"]
[BlackTeam "USA"]
[WhiteClock "0:00:00"]
[BlackClock "0:01:07"]

1. e4 {[%clk 0:03:00]}  c5 {[%clk 0:02:55]} 2. Nf3 {[%clk 0:03:00]}  Nc6 {[%clk 0:02:51]} 3. c3 {[%clk 0:02:58]}  Nf6 {[%clk 0:02:50]} 4. Bd3 {[%clk 0:02:46]}  e5 {[%clk 0:02:45]} 5. O-O {[%clk 0:02:45]}  d5 {[%clk 0:02:42]} 6. exd5 {[%clk 0:02:34]}  Qxd5 {[%clk 0:02:43]} 7. Bc2 {[%clk 0:02:21]}  Be7 {[%clk 0:02:39]} 8. Re1 {[%clk 0:02:19]}  O-O {[%clk 0:02:36]} 9. d3 {[%clk 0:02:19]}  Bg4 {[%clk 0:02:35]} 10. Nbd2 {[%clk 0:02:08]}  Rad8 {[%clk 0:02:28]} 11. h3 {[%clk 0:02:01]}  Bh5 {[%clk 0:02:14]} 12. Ne4 {[%clk 0:01:46]}  Nxe4 {[%clk 0:02:05]} 13. dxe4 {[%clk 0:01:42]}  Qe6 {[%clk 0:02:00]} 14. Qe2 {[%clk 0:01:36]}  Qf6 {[%clk 0:01:53]} 15. Bg5 {[%clk 0:01:35]}  Bxf3 {[%clk 0:01:53]} 16. Bxf6 {[%clk 0:01:34]}  Bxe2 {[%clk 0:01:52]} 17. Bxe7 {[%clk 0:01:34]}  Nxe7 {[%clk 0:01:52]} 18. Rxe2 {[%clk 0:01:33]}  Rd6 {[%clk 0:01:47]} 19. Kf1 {[%clk 0:01:28]}  Rfd8 {[%clk 0:01:45]} 20. Ke1 {[%clk 0:01:28]}  Ng6 {[%clk 0:01:42]} 21. g3 {[%clk 0:01:26]}  h5 {[%clk 0:01:41]} 22. Rd1 {[%clk 0:01:21]}  Rxd1+ {[%clk 0:01:39]} 23. Bxd1 {[%clk 0:01:21]}  h4 {[%clk 0:01:40]} 24. Rd2 {[%clk 0:01:19]}  Rxd2 {[%clk 0:01:34]} 25. Kxd2 {[%clk 0:01:18]}  hxg3 {[%clk 0:01:35]} 26. fxg3 {[%clk 0:01:18]}  Kf8 {[%clk 0:01:36]} 27. Bb3 {[%clk 0:01:11]}  Ke7 {[%clk 0:01:35]} 28. Ke3 {[%clk 0:01:10]}  f6 {[%clk 0:01:33]} 29. Bd5 {[%clk 0:01:09]}  b6 {[%clk 0:01:33]} 30. a3 {[%clk 0:01:03]}  Nf8 {[%clk 0:01:29]} 31. b4 {[%clk 0:01:00]}  cxb4 {[%clk 0:01:26]} 32. axb4 {[%clk 0:00:59]}  Kd6 {[%clk 0:01:26]} 33. Kf3 {[%clk 0:00:53]}  a5 {[%clk 0:01:26]} 34. bxa5 {[%clk 0:00:52]}  bxa5 {[%clk 0:01:27]} 35. h4 {[%clk 0:00:50]}  a4 {[%clk 0:01:25]} 36. g4 {[%clk 0:00:49]}  a3 {[%clk 0:01:23]} 37. g5 {[%clk 0:00:49]}  fxg5 {[%clk 0:01:21]} 38. hxg5 {[%clk 0:00:49]}  Ng6 {[%clk 0:01:21]} 39. Ba2 {[%clk 0:00:41]}  Nf4 {[%clk 0:01:17]} 40. Ke3 {[%clk 0:00:38]}  Ne6 {[%clk 0:01:12]} 41. g6 {[%clk 0:00:30]}  Nf4 {[%clk 0:01:12]} 42. Bf7 {[%clk 0:00:18]}  Nxg6 {[%clk 0:01:11]} 43. Kd2 {[%clk 0:00:13]}  Nf4 {[%clk 0:01:09]} 44. Kc2 {[%clk 0:00:12]}  g5 {[%clk 0:01:09]} 45. Kb3 {[%clk 0:00:08]}  g4 {[%clk 0:01:10]} 46. Bc4 {[%clk 0:00:05]}  g3 {[%clk 0:01:10]} 47. Bf1 {[%clk 0:00:02]}  g2 {[%clk 0:01:10]} 48. Bxg2 {[%clk 0:00:02]}  Nxg2 {[%clk 0:01:11]} 49. Kxa3 {[%clk 0:00:02]}  Kc5 {[%clk 0:01:11]} 50. Kb3 {[%clk 0:00:02]}  Nf4 {[%clk 0:01:07]} 51. Kc2 {[%clk 0:00:01]}  Kc4 {[%clk 0:01:07]} 52. Kd2 {[%clk 0:00:01]}  Ne6 {[%clk 0:01:07]} 53. Kc2 {[%clk 0:00:00]}  Nc5 {[%clk 0:01:07]} 0-1

[Event "January 2 Late 2024"]
[Site "https://www.chess.com"]
[Date "2024.01.02"]
[Round "6"]
[White "Pepino, Enrico"]
[Black "Gulamirian, Korun"]
[Result "1-0"]
[Board "194"]
[TimeControl "180+1"]
[WhiteFideId "810908"]
[BlackFideId "4144899"]
[WhiteElo "2058"]
[BlackElo "1602"]
[WhiteTeam "ITA"]
[BlackTeam "RUS"]
[WhiteClock "0:01:47"]
[BlackClock "0:01:19"]

1. e4 {[%clk 0:02:55]}  e5 {[%clk 0:02:59]} 2. Nf3 {[%clk 0:02:54]}  Nc6 {[%clk 0:02:58]} 3. d4 {[%clk 0:02:53]}  exd4 {[%clk 0:02:58]} 4. Nxd4 {[%clk 0:02:54]}  Bc5 {[%clk 0:02:57]} 5. Be3 {[%clk 0:02:53]}  Qf6 {[%clk 0:02:56]} 6. c3 {[%clk 0:02:54]}  Nge7 {[%clk 0:02:54]} 7. g3 {[%clk 0:02:54]}  Bb6 {[%clk 0:02:53]} 8. Bg2 {[%clk 0:02:54]}  O-O {[%clk 0:02:53]} 9. O-O {[%clk 0:02:54]}  d6 {[%clk 0:02:47]} 10. a4 {[%clk 0:02:54]}  Ne5 {[%clk 0:02:41]} 11. Na3 {[%clk 0:02:47]}  a6 {[%clk 0:02:40]} 12. Qe2 {[%clk 0:02:44]}  Bg4 {[%clk 0:02:33]} 13. f3 {[%clk 0:02:44]}  Bd7 {[%clk 0:02:30]} 14. Ndc2 {[%clk 0:02:42]}  Bxe3+ {[%clk 0:02:18]} 15. Nxe3 {[%clk 0:02:35]}  Bxa4 {[%clk 0:02:17]} 16. f4 {[%clk 0:02:28]}  Nd7 {[%clk 0:02:06]} 17. Nac4 {[%clk 0:02:12]}  Bb5 {[%clk 0:01:56]} 18. b3 {[%clk 0:02:11]}  Qxc3 {[%clk 0:01:49]} 19. Rab1 {[%clk 0:02:04]}  Rae8 {[%clk 0:01:41]} 20. Rfc1 {[%clk 0:02:04]}  Qb4 {[%clk 0:01:40]} 21. Qf2 {[%clk 0:01:54]}  Nc5 {[%clk 0:01:36]} 22. Nc2 {[%clk 0:01:49]}  Qc3 {[%clk 0:01:31]} 23. N2a3 {[%clk 0:01:48]}  Qe3 {[%clk 0:01:19]} 24. Qxe3 {[%clk 0:01:47]} 1-0

[Event "January 2 Late 2024"]
[Site "https://www.chess.com"]
[Date "2024.01.02"]
[Round "6"]
[White "Anna20240"]
[Black "Reinecke, Katharina"]
[Result "0-1"]
[Board "195"]
[TimeControl "180+1"]
[BlackFideId "12929727"]
[WhiteElo "1875"]
[BlackElo "2019"]
[BlackTeam "GER"]
[WhiteClock "0:00:00"]
[BlackClock "0:00:39"]

1. d4 {[%clk 0:02:55]}  d5 {[%clk 0:02:58]} 2. c4 {[%clk 0:02:54]}  c6 {[%clk 0:02:57]} 3. Nf3 {[%clk 0:02:53]}  Nf6 {[%clk 0:02:57]} 4. g3 {[%clk 0:02:52]}  Bg4 {[%clk 0:02:55]} 5. Bg2 {[%clk 0:02:49]}  Bxf3 {[%clk 0:02:52]} 6. Bxf3 {[%clk 0:02:47]}  e6 {[%clk 0:02:52]} 7. Nd2 {[%clk 0:02:45]}  Be7 {[%clk 0:02:48]} 8. O-O {[%clk 0:02:44]}  O-O {[%clk 0:02:47]} 9. b3 {[%clk 0:02:35]}  a6 {[%clk 0:02:47]} 10. Bb2 {[%clk 0:02:32]}  b5 {[%clk 0:02:46]} 11. cxd5 {[%clk 0:02:26]}  cxd5 {[%clk 0:02:43]} 12. e4 {[%clk 0:02:23]}  Nc6 {[%clk 0:02:24]} 13. Bg2 {[%clk 0:02:13]}  Rc8 {[%clk 0:02:17]} 14. Rc1 {[%clk 0:02:12]}  Qb6 {[%clk 0:01:55]} 15. e5 {[%clk 0:02:01]}  Nd7 {[%clk 0:01:51]} 16. Nf3 {[%clk 0:01:56]}  Nb4 {[%clk 0:01:40]} 17. a3 {[%clk 0:01:46]}  Rxc1 {[%clk 0:01:35]} 18. Bxc1 {[%clk 0:01:37]}  Nc6 {[%clk 0:01:29]} 19. b4 {[%clk 0:01:36]}  a5 {[%clk 0:01:27]} 20. Bd2 {[%clk 0:01:23]}  axb4 {[%clk 0:01:26]} 21. axb4 {[%clk 0:01:21]}  Bxb4 {[%clk 0:01:23]} 22. Bxb4 {[%clk 0:01:20]}  Nxb4 {[%clk 0:01:23]} 23. Qd2 {[%clk 0:01:16]}  Nc6 {[%clk 0:01:20]} 24. Rb1 {[%clk 0:01:16]}  b4 {[%clk 0:01:19]} 25. Qd3 {[%clk 0:01:05]}  Ra8 {[%clk 0:01:17]} 26. Rb3 {[%clk 0:00:32]}  Ra1+ {[%clk 0:01:13]} 27. Bf1 {[%clk 0:00:32]}  Na5 {[%clk 0:01:04]} 28. Rb2 {[%clk 0:00:25]}  Nc4 {[%clk 0:01:01]} 29. Rb3 {[%clk 0:00:23]}  g6 {[%clk 0:00:54]} 30. Nd2 {[%clk 0:00:13]}  Nxd2 {[%clk 0:00:48]} 31. Qxd2 {[%clk 0:00:13]}  Qb5 {[%clk 0:00:46]} 32. Qd3 {[%clk 0:00:08]}  Qxd3 {[%clk 0:00:44]} 33. Rxd3 {[%clk 0:00:08]}  Rb1 {[%clk 0:00:41]} 34. Kg2 {[%clk 0:00:06]}  b3 {[%clk 0:00:41]} 35. Rc3 {[%clk 0:00:04]}  Nb6 {[%clk 0:00:40]} 36. Rc6 {[%clk 0:00:02]}  Nc4 {[%clk 0:00:39]} 37. Bxc4 {[%clk 0:00:00]}  dxc4 {[%clk 0:00:39]} 0-1

[Event "January 2 Late 2024"]
[Site "https://www.chess.com"]
[Date "2024.01.02"]
[Round "6"]
[White "HouseOfDurin"]
[Black "Winkels, Marcel"]
[Result "1-0"]
[Board "200"]
[TimeControl "180+1"]
[BlackFideId "1003887"]
[WhiteElo "2227"]
[BlackElo "2004"]
[BlackTeam "NED"]
[WhiteClock "0:01:40"]
[BlackClock "0:00:25"]

1. d4 {[%clk 0:03:00]}  d6 {[%clk 0:02:59]} 2. Bg5 {[%clk 0:03:01]}  h6 {[%clk 0:02:58]} 3. Bh4 {[%clk 0:03:01]}  g5 {[%clk 0:02:58]} 4. Bg3 {[%clk 0:03:02]}  Bg7 {[%clk 0:02:58]} 5. e3 {[%clk 0:03:02]}  Nf6 {[%clk 0:02:53]} 6. Bd3 {[%clk 0:03:01]}  O-O {[%clk 0:02:51]} 7. c4 {[%clk 0:03:01]}  Nc6 {[%clk 0:02:48]} 8. a3 {[%clk 0:03:00]}  e5 {[%clk 0:02:46]} 9. dxe5 {[%clk 0:02:54]}  dxe5 {[%clk 0:02:40]} 10. Nc3 {[%clk 0:02:54]}  Re8 {[%clk 0:02:29]} 11. Nd5 {[%clk 0:02:54]}  Nxd5 {[%clk 0:02:23]} 12. cxd5 {[%clk 0:02:54]}  Ne7 {[%clk 0:02:22]} 13. e4 {[%clk 0:02:48]}  Ng6 {[%clk 0:02:08]} 14. h4 {[%clk 0:02:42]}  c6 {[%clk 0:02:02]} 15. hxg5 {[%clk 0:02:40]}  hxg5 {[%clk 0:02:01]} 16. Qh5 {[%clk 0:02:30]}  Nf4 {[%clk 0:01:32]} 17. Qh7+ {[%clk 0:02:24]}  Kf8 {[%clk 0:01:31]} 18. O-O-O {[%clk 0:02:18]}  Qf6 {[%clk 0:01:30]} 19. Nf3 {[%clk 0:01:58]}  Ke7 {[%clk 0:01:24]} 20. Bxf4 {[%clk 0:01:45]}  exf4 {[%clk 0:00:25]} 21. e5 {[%clk 0:01:40]} 1-0

[Event "January 2 Late 2024"]
[Site "https://www.chess.com"]
[Date "2024.01.02"]
[Round "6"]
[White "Vargas, Mauricio"]
[Black "yujiarun18"]
[Result "0-1"]
[Board "201"]
[TimeControl "180+1"]
[WhiteFideId "4404572"]
[WhiteElo "1833"]
[BlackElo "2151"]
[WhiteTeam "COL"]
[WhiteClock "0:00:00"]
[BlackClock "0:00:52"]

1. e4 {[%clk 0:02:06]}  c5 {[%clk 0:02:58]} 2. Nc3 {[%clk 0:02:02]}  Nc6 {[%clk 0:02:56]} 3. f4 {[%clk 0:02:01]}  g6 {[%clk 0:02:55]} 4. Nf3 {[%clk 0:02:02]}  Bg7 {[%clk 0:02:55]} 5. g3 {[%clk 0:02:00]}  d6 {[%clk 0:02:54]} 6. Bg2 {[%clk 0:02:01]}  Nf6 {[%clk 0:02:54]} 7. d3 {[%clk 0:02:01]}  O-O {[%clk 0:02:55]} 8. O-O {[%clk 0:02:01]}  b6 {[%clk 0:02:51]} 9. h3 {[%clk 0:02:01]}  Bb7 {[%clk 0:02:51]} 10. Nd5 {[%clk 0:01:52]}  Nxd5 {[%clk 0:02:40]} 11. exd5 {[%clk 0:01:52]}  Nb8 {[%clk 0:02:41]} 12. c4 {[%clk 0:01:50]}  Nd7 {[%clk 0:02:41]} 13. Rb1 {[%clk 0:01:46]}  a6 {[%clk 0:02:38]} 14. Qe1 {[%clk 0:01:43]}  b5 {[%clk 0:02:37]} 15. g4 {[%clk 0:01:40]}  Nb6 {[%clk 0:02:29]} 16. b3 {[%clk 0:01:38]}  Qd7 {[%clk 0:02:25]} 17. Qh4 {[%clk 0:01:37]}  e6 {[%clk 0:02:23]} 18. f5 {[%clk 0:01:28]}  exf5 {[%clk 0:02:17]} 19. Bh6 {[%clk 0:01:26]}  fxg4 {[%clk 0:02:13]} 20. Ng5 {[%clk 0:01:20]}  Bxh6 {[%clk 0:01:39]} 21. Qxh6 {[%clk 0:01:11]}  f6 {[%clk 0:01:37]} 22. Ne6 {[%clk 0:01:09]}  Rf7 {[%clk 0:01:36]} 23. hxg4 {[%clk 0:01:05]}  Re8 {[%clk 0:01:29]} 24. Rbe1 {[%clk 0:01:03]}  bxc4 {[%clk 0:01:25]} 25. dxc4 {[%clk 0:01:02]}  Nc8 {[%clk 0:01:23]} 26. Rf2 {[%clk 0:00:43]}  Kh8 {[%clk 0:01:16]} 27. Be4 {[%clk 0:00:20]}  Ne7 {[%clk 0:01:15]} 28. g5 {[%clk 0:00:18]}  f5 {[%clk 0:01:14]} 29. Bd3 {[%clk 0:00:16]}  Ng8 {[%clk 0:01:13]} 30. Qh2 {[%clk 0:00:13]}  h6 {[%clk 0:01:02]} 31. gxh6 {[%clk 0:00:12]}  Rh7 {[%clk 0:01:03]} 32. Qg3 {[%clk 0:00:08]}  Rxh6 {[%clk 0:01:02]} 33. Bc2 {[%clk 0:00:06]}  Qh7 {[%clk 0:00:59]} 34. Qc3+ {[%clk 0:00:05]}  Nf6 {[%clk 0:00:56]} 35. Qxf6+ {[%clk 0:00:05]}  Kg8 {[%clk 0:00:57]} 36. Rg2 {[%clk 0:00:01]}  Rh1+ {[%clk 0:00:55]} 37. Kf2 {[%clk 0:00:00]}  Rh6 {[%clk 0:00:52]} 0-1

[Event "January 2 Late 2024"]
[Site "https://www.chess.com"]
[Date "2024.01.02"]
[Round "7"]
[White "Sanal, Vahap"]
[Black "Nakamura, Hikaru"]
[Result "0-1"]
[Board "1"]
[TimeControl "180+1"]
[WhiteFideId "6300545"]
[BlackFideId "2016192"]
[WhiteElo "2907"]
[BlackElo "3283"]
[WhiteTeam "TUR"]
[BlackTeam "USA"]
[WhiteClock "0:00:03"]
[BlackClock "0:00:28"]

1. e4 {[%clk 0:03:00]}  c5 {[%clk 0:02:55]} 2. Nf3 {[%clk 0:03:00]}  e6 {[%clk 0:02:56]} 3. d4 {[%clk 0:03:00]}  cxd4 {[%clk 0:02:56]} 4. Nxd4 {[%clk 0:03:01]}  a6 {[%clk 0:02:56]} 5. Nc3 {[%clk 0:02:57]}  Qc7 {[%clk 0:02:55]} 6. g3 {[%clk 0:02:57]}  Nf6 {[%clk 0:02:50]} 7. Bg2 {[%clk 0:02:57]}  Nc6 {[%clk 0:02:50]} 8. O-O {[%clk 0:02:56]}  Nxd4 {[%clk 0:02:48]} 9. Qxd4 {[%clk 0:02:56]}  Bc5 {[%clk 0:02:49]} 10. Bf4 {[%clk 0:02:55]}  d6 {[%clk 0:02:49]} 11. Qd2 {[%clk 0:02:56]}  h6 {[%clk 0:02:47]} 12. Rad1 {[%clk 0:02:55]}  e5 {[%clk 0:02:47]} 13. Be3 {[%clk 0:02:56]}  Bxe3 {[%clk 0:02:40]} 14. fxe3 {[%clk 0:02:52]}  Be6 {[%clk 0:02:32]} 15. Qxd6 {[%clk 0:02:52]}  Rc8 {[%clk 0:02:26]} 16. Rf2 {[%clk 0:02:47]}  Qc5 {[%clk 0:02:01]} 17. Qxc5 {[%clk 0:02:22]}  Rxc5 {[%clk 0:02:01]} 18. Nd5 {[%clk 0:02:22]}  Nd7 {[%clk 0:01:53]} 19. c3 {[%clk 0:02:10]}  f6 {[%clk 0:01:53]} 20. Rfd2 {[%clk 0:02:09]}  Kf7 {[%clk 0:01:53]} 21. Bf3 {[%clk 0:02:05]}  Rhc8 {[%clk 0:01:51]} 22. h4 {[%clk 0:02:02]}  g6 {[%clk 0:01:47]} 23. h5 {[%clk 0:01:59]}  g5 {[%clk 0:01:47]} 24. g4 {[%clk 0:01:57]}  Nb8 {[%clk 0:01:39]} 25. Kg2 {[%clk 0:01:55]}  Rd8 {[%clk 0:01:33]} 26. Kg3 {[%clk 0:01:51]}  Rc6 {[%clk 0:01:30]} 27. Be2 {[%clk 0:01:46]}  Rcd6 {[%clk 0:01:30]} 28. Rf1 {[%clk 0:01:44]}  Nd7 {[%clk 0:01:28]} 29. Bc4 {[%clk 0:01:37]}  Kg7 {[%clk 0:01:26]} 30. Rfd1 {[%clk 0:00:52]}  Nc5 {[%clk 0:01:20]} 31. Kf3 {[%clk 0:00:53]}  b5 {[%clk 0:01:19]} 32. Bb3 {[%clk 0:00:53]}  Bf7 {[%clk 0:01:05]} 33. Bc2 {[%clk 0:00:52]}  f5 {[%clk 0:01:04]} 34. gxf5 {[%clk 0:00:42]}  Bxh5+ {[%clk 0:01:04]} 35. Kg3 {[%clk 0:00:43]}  Bxd1 {[%clk 0:01:05]} 36. Rxd1 {[%clk 0:00:43]}  Nd7 {[%clk 0:01:04]} 37. Nc7 {[%clk 0:00:24]}  Rxd1 {[%clk 0:01:03]} 38. Bxd1 {[%clk 0:00:23]}  Nc5 {[%clk 0:01:00]} 39. Bh5 {[%clk 0:00:20]}  Nxe4+ {[%clk 0:00:40]} 40. Kf3 {[%clk 0:00:20]}  Nd2+ {[%clk 0:00:41]} 41. Ke2 {[%clk 0:00:19]}  Kf6 {[%clk 0:00:41]} 42. Ne6 {[%clk 0:00:12]}  Rd5 {[%clk 0:00:33]} 43. Nc7 {[%clk 0:00:09]}  Rd7 {[%clk 0:00:33]} 44. Ne8+ {[%clk 0:00:08]}  Kxf5 {[%clk 0:00:32]} 45. Bg4+ {[%clk 0:00:08]}  Kxg4 {[%clk 0:00:32]} 46. Nf6+ {[%clk 0:00:08]}  Kf5 {[%clk 0:00:31]} 47. Nxd7 {[%clk 0:00:09]}  Ne4 {[%clk 0:00:31]} 48. Nb8 {[%clk 0:00:07]}  h5 {[%clk 0:00:31]} 49. Nxa6 {[%clk 0:00:07]}  h4 {[%clk 0:00:32]} 50. Nb4 {[%clk 0:00:04]}  h3 {[%clk 0:00:33]} 51. Kf1 {[%clk 0:00:04]}  g4 {[%clk 0:00:34]} 52. Nd3 {[%clk 0:00:03]}  g3 {[%clk 0:00:34]} 53. Ne1 {[%clk 0:00:04]}  h2 {[%clk 0:00:28]} 54. Kg2 {[%clk 0:00:03]}  Nf2 {[%clk 0:00:28]} 0-1

[Event "January 2 Late 2024"]
[Site "https://www.chess.com"]
[Date "2024.01.02"]
[Round "7"]
[White "Nihal Sarin"]
[Black "Caruana, Fabiano"]
[Result "0-1"]
[Board "2"]
[TimeControl "180+1"]
[WhiteFideId "25092340"]
[BlackFideId "2020009"]
[WhiteElo "3213"]
[BlackElo "3048"]
[WhiteTeam "IND"]
[BlackTeam "USA"]
[WhiteClock "0:00:17"]
[BlackClock "0:00:21"]

1. d4 {[%clk 0:02:54]}  Nf6 {[%clk 0:03:00]} 2. c4 {[%clk 0:02:53]}  e6 {[%clk 0:03:00]} 3. Nf3 {[%clk 0:02:53]}  d5 {[%clk 0:03:01]} 4. Nc3 {[%clk 0:02:53]}  Bb4 {[%clk 0:03:01]} 5. e3 {[%clk 0:02:51]}  O-O {[%clk 0:02:59]} 6. Bd2 {[%clk 0:02:51]}  Nbd7 {[%clk 0:02:58]} 7. Be2 {[%clk 0:02:50]}  dxc4 {[%clk 0:02:57]} 8. O-O {[%clk 0:02:49]}  Nb6 {[%clk 0:02:53]} 9. Ne5 {[%clk 0:02:46]}  c5 {[%clk 0:02:53]} 10. dxc5 {[%clk 0:02:46]}  Bxc5 {[%clk 0:02:53]} 11. Nxc4 {[%clk 0:02:47]}  Nxc4 {[%clk 0:02:49]} 12. Bxc4 {[%clk 0:02:48]}  b6 {[%clk 0:02:50]} 13. Qe2 {[%clk 0:02:34]}  Bb7 {[%clk 0:02:48]} 14. Rfd1 {[%clk 0:02:35]}  Qc7 {[%clk 0:02:36]} 15. a3 {[%clk 0:02:18]}  a6 {[%clk 0:02:25]} 16. h3 {[%clk 0:02:12]}  b5 {[%clk 0:02:16]} 17. Bd3 {[%clk 0:02:12]}  Qe5 {[%clk 0:02:14]} 18. Rac1 {[%clk 0:02:06]}  Rfd8 {[%clk 0:02:10]} 19. Be1 {[%clk 0:02:06]}  Qg5 {[%clk 0:02:01]} 20. Qf1 {[%clk 0:01:57]}  Bb6 {[%clk 0:01:52]} 21. Bb1 {[%clk 0:01:54]}  g6 {[%clk 0:01:37]} 22. Rxd8+ {[%clk 0:01:46]}  Rxd8 {[%clk 0:01:38]} 23. Rd1 {[%clk 0:01:46]}  Rxd1 {[%clk 0:01:29]} 24. Nxd1 {[%clk 0:01:47]}  Bc7 {[%clk 0:01:25]} 25. Bc3 {[%clk 0:01:34]}  Ne4 {[%clk 0:01:23]} 26. f4 {[%clk 0:01:26]}  Qd5 {[%clk 0:01:13]} 27. Bd4 {[%clk 0:01:25]}  Nd2 {[%clk 0:01:10]} 28. Nc3 {[%clk 0:01:24]}  Qxd4 {[%clk 0:01:06]} 29. exd4 {[%clk 0:01:22]}  Nxf1 {[%clk 0:01:06]} 30. Kxf1 {[%clk 0:01:23]}  Bxf4 {[%clk 0:01:06]} 31. Ba2 {[%clk 0:01:04]}  Bc1 {[%clk 0:00:57]} 32. Nd1 {[%clk 0:01:04]}  Kf8 {[%clk 0:00:53]} 33. g3 {[%clk 0:01:04]}  Ke7 {[%clk 0:00:53]} 34. Ke2 {[%clk 0:01:04]}  Be4 {[%clk 0:00:40]} 35. Bb3 {[%clk 0:01:04]}  Kd6 {[%clk 0:00:36]} 36. Nf2 {[%clk 0:01:03]}  Bb1 {[%clk 0:00:33]} 37. Nd3 {[%clk 0:01:03]}  Bxd3+ {[%clk 0:00:32]} 38. Kxd3 {[%clk 0:01:04]}  Bxb2 {[%clk 0:00:33]} 39. a4 {[%clk 0:01:05]}  f5 {[%clk 0:00:28]} 40. axb5 {[%clk 0:01:05]}  axb5 {[%clk 0:00:29]} 41. Ba2 {[%clk 0:01:00]}  Bc1 {[%clk 0:00:27]} 42. Bb3 {[%clk 0:00:59]}  Bg5 {[%clk 0:00:27]} 43. Ke2 {[%clk 0:00:57]}  Bd8 {[%clk 0:00:26]} 44. Kd3 {[%clk 0:00:56]}  h5 {[%clk 0:00:25]} 45. Ke3 {[%clk 0:00:51]}  Bb6 {[%clk 0:00:25]} 46. Kd3 {[%clk 0:00:51]}  Bc7 {[%clk 0:00:23]} 47. Ke3 {[%clk 0:00:50]}  Ke7 {[%clk 0:00:22]} 48. g4 {[%clk 0:00:38]}  fxg4 {[%clk 0:00:22]} 49. hxg4 {[%clk 0:00:39]}  hxg4 {[%clk 0:00:23]} 50. Ke4 {[%clk 0:00:35]}  g3 {[%clk 0:00:22]} 51. Kf3 {[%clk 0:00:35]}  b4 {[%clk 0:00:22]} 52. Bc4 {[%clk 0:00:34]}  g5 {[%clk 0:00:22]} 53. Bb3 {[%clk 0:00:33]}  Bf4 {[%clk 0:00:21]} 54. Bc4 {[%clk 0:00:32]}  Kd6 {[%clk 0:00:21]} 55. Bb3 {[%clk 0:00:17]}  e5 {[%clk 0:00:21]} 0-1

[Event "January 2 Late 2024"]
[Site "https://www.chess.com"]
[Date "2024.01.02"]
[Round "7"]
[White "Vachier-Lagrave, Maxime"]
[Black "Le, Tuan Minh"]
[Result "0-1"]
[Board "4"]
[TimeControl "180+1"]
[WhiteFideId "623539"]
[BlackFideId "12401153"]
[WhiteElo "3193"]
[BlackElo "3013"]
[WhiteTeam "FRA"]
[BlackTeam "VIE"]
[WhiteClock "0:00:06"]
[BlackClock "0:00:12"]

1. e4 {[%clk 0:03:00]}  e5 {[%clk 0:02:52]} 2. Nf3 {[%clk 0:03:00]}  Nc6 {[%clk 0:02:49]} 3. Bb5 {[%clk 0:03:00]}  a6 {[%clk 0:02:49]} 4. Ba4 {[%clk 0:03:00]}  Bc5 {[%clk 0:02:50]} 5. c3 {[%clk 0:02:59]}  Nge7 {[%clk 0:02:50]} 6. O-O {[%clk 0:02:56]}  Ng6 {[%clk 0:02:50]} 7. d4 {[%clk 0:02:56]}  Ba7 {[%clk 0:02:51]} 8. Bb3 {[%clk 0:02:46]}  O-O {[%clk 0:02:40]} 9. Bg5 {[%clk 0:02:46]}  Qe8 {[%clk 0:02:40]} 10. Re1 {[%clk 0:02:46]}  d6 {[%clk 0:02:41]} 11. Na3 {[%clk 0:02:43]}  Bg4 {[%clk 0:02:32]} 12. Nc2 {[%clk 0:02:24]}  h6 {[%clk 0:02:30]} 13. Be3 {[%clk 0:02:20]}  Nh4 {[%clk 0:02:29]} 14. Nxh4 {[%clk 0:01:59]}  Bxd1 {[%clk 0:02:27]} 15. Raxd1 {[%clk 0:02:00]}  exd4 {[%clk 0:02:20]} 16. Bxd4 {[%clk 0:02:00]}  Nxd4 {[%clk 0:02:18]} 17. cxd4 {[%clk 0:02:00]}  Qd7 {[%clk 0:02:11]} 18. Ne3 {[%clk 0:01:51]}  Rfe8 {[%clk 0:02:00]} 19. Nef5 {[%clk 0:01:48]}  Kh7 {[%clk 0:01:54]} 20. Nf3 {[%clk 0:01:43]}  g6 {[%clk 0:01:50]} 21. Ng3 {[%clk 0:01:35]}  Re7 {[%clk 0:01:50]} 22. h4 {[%clk 0:01:34]}  Rae8 {[%clk 0:01:48]} 23. e5 {[%clk 0:01:33]}  d5 {[%clk 0:01:13]} 24. h5 {[%clk 0:01:32]}  Kg7 {[%clk 0:01:13]} 25. Bc2 {[%clk 0:01:09]}  c5 {[%clk 0:01:09]} 26. dxc5 {[%clk 0:01:08]}  Bxc5 {[%clk 0:01:09]} 27. Bb3 {[%clk 0:01:09]}  Rd8 {[%clk 0:01:01]} 28. hxg6 {[%clk 0:00:56]}  fxg6 {[%clk 0:01:01]} 29. Rd3 {[%clk 0:00:54]}  Qg4 {[%clk 0:00:57]} 30. Kf1 {[%clk 0:00:43]}  h5 {[%clk 0:00:51]} 31. Rc1 {[%clk 0:00:34]}  Bb6 {[%clk 0:00:50]} 32. Bxd5 {[%clk 0:00:31]}  Red7 {[%clk 0:00:44]} 33. Rc4 {[%clk 0:00:27]}  Rxd5 {[%clk 0:00:36]} 34. Rxg4 {[%clk 0:00:27]}  hxg4 {[%clk 0:00:35]} 35. Rxd5 {[%clk 0:00:27]}  Rxd5 {[%clk 0:00:35]} 36. Nh2 {[%clk 0:00:26]}  Rxe5 {[%clk 0:00:29]} 37. Nxg4 {[%clk 0:00:26]}  Ra5 {[%clk 0:00:30]} 38. a3 {[%clk 0:00:17]}  Bd4 {[%clk 0:00:30]} 39. b4 {[%clk 0:00:13]}  Rxa3 {[%clk 0:00:30]} 40. Ne4 {[%clk 0:00:13]}  Rb3 {[%clk 0:00:28]} 41. Ke2 {[%clk 0:00:12]}  Rxb4 {[%clk 0:00:28]} 42. Kd3 {[%clk 0:00:12]}  a5 {[%clk 0:00:29]} 43. Ng5 {[%clk 0:00:12]}  Bf6 {[%clk 0:00:18]} 44. Ne4 {[%clk 0:00:12]}  Bb2 {[%clk 0:00:14]} 45. Ne3 {[%clk 0:00:11]}  a4 {[%clk 0:00:15]} 46. Nc2 {[%clk 0:00:06]}  Rb6 {[%clk 0:00:12]} 0-1